fUSD/lending_fUSD_20260519
["ID","MTS","AMOUNT","RATE_DAILY","PERIOD"]
[422629188,1779174642000,-1250.0,0.00026961,2]
[422629187,1779174642000,-1250.0,0.00026961,2]
[422629184,1779174642000,-661.81864313,0.00026941,2]
[422629236,1779174642000,-254.52837,0.00027397,2]
[422629191,1779174642000,-1250.0,0.00026961,2]
[422629202,1779174642000,-150.0,0.00026986,2]
[422629199,1779174642000,-150.0,0.00026986,2]
[422629193,1779174642000,-1250.0,0.00026961,2]
[422629194,1779174642000,-1240.0,0.00026961,2]
[422629201,1779174642000,-150.0,0.00026986,2]
[422629196,1779174642000,-150.0,0.00026986,2]
[422629200,1779174642000,-150.0,0.00026986,2]
[422629197,1779174642000,-150.0,0.00026986,2]
[422629198,1779174642000,-150.0,0.00026986,2]
[422629204,1779174642000,-150.0,0.00026986,2]
[422629208,1779174642000,-251.0,0.00027106,2]
[422629210,1779174642000,-3371.18320883,0.00027155,2]
[422629209,1779174642000,-253.0,0.00027106,2]
[422629203,1779174642000,-150.0,0.00026986,2]
[422629192,1779174642000,-1250.0,0.00026961,2]
[422629207,1779174642000,-5151.04558368,0.000271,2]
[422629287,1779174643000,-150.74815113,0.00028493,2]
[422629288,1779174643000,-500.0,0.00028493,2]
[422629285,1779174643000,-500.62055786,0.00028493,2]
[422629292,1779174643000,-573.96247089,0.00028493,2]
[422629269,1779174643000,-490.4,0.00028267,2]
[422629278,1779174643000,-557.62726141,0.00028493,2]
[422629279,1779174643000,-150.0,0.00028493,2]
[422629277,1779174643000,-500.0,0.00028493,2]
[422629275,1779174643000,-441.19250183,0.00028493,2]
[422629290,1779174643000,-500.0,0.00028493,2]
[422629276,1779174643000,-177.01992321,0.00028493,2]
[422629282,1779174643000,-500.0,0.00028493,2]
[422629305,1779174643000,-500.0,0.00028493,2]
[422629295,1779174643000,-500.0,0.00028493,2]
[422629293,1779174643000,-275.90692005,0.00028493,2]
[422629297,1779174643000,-150.0,0.00028493,2]
[422629302,1779174643000,-150.0,0.00028493,2]
[422629296,1779174643000,-354.74373799,0.00028493,2]
[422629298,1779174643000,-150.0,0.00028493,2]
[422629303,1779174643000,-150.0,0.00028493,2]
[422629299,1779174643000,-150.0,0.00028493,2]
[422629300,1779174643000,-164.15228212,0.00028493,2]
[422629301,1779174643000,-150.0,0.00028493,2]
[422629273,1779174643000,-500.0,0.00028493,2]
[422629310,1779174643000,-150.0,0.00028493,2]
[422629294,1779174643000,-500.0,0.00028493,2]
[422629271,1779174643000,-1000.0,0.00028363,15]
[422629256,1779174643000,-159.29,0.00028,2]
[422629272,1779174643000,-151.0,0.0002849,7]
[422629245,1779174643000,-163.6,0.000274,7]
[422629247,1779174643000,-3371.18320883,0.00027514,2]
[422629238,1779174643000,-254.52837,0.00027397,2]
[422629306,1779174643000,-535.59562921,0.00028493,2]
[422629242,1779174643000,-19184.67,0.00027397,10]
[422629240,1779174643000,-13444.37,0.00027397,10]
[422629241,1779174643000,-23021.61,0.00027397,10]
[422629243,1779174643000,-174.75,0.000274,7]
[422629261,1779174643000,-159.29,0.00028,2]
[422629262,1779174643000,-159.29,0.00028,2]
[422629260,1779174643000,-159.29,0.00028,2]
[422629249,1779174643000,-3371.18320883,0.00027555,2]
[422629268,1779174643000,-1162.06431751,0.00028121,2]
[422629255,1779174643000,-500.0,0.000278,7]
[422629251,1779174643000,-364.0,0.00027671,7]
[422629254,1779174643000,-166.0,0.00027751,3]
[422629258,1779174643000,-159.29,0.00028,2]
[422629253,1779174643000,-3371.18320883,0.00027727,2]
[422629259,1779174643000,-159.29,0.00028,2]
[422629263,1779174643000,-159.29,0.00028,2]
[422629274,1779174643000,-500.0,0.00028493,2]
[422629264,1779174643000,-159.29,0.00028,2]
[422629265,1779174643000,-159.29,0.00028,2]
[422629266,1779174643000,-661.81864313,0.00028006,2]
[422629270,1779174643000,-2697.3,0.000283,2]
[422629267,1779174643000,-2610.81,0.00028071,7]
[422629252,1779174643000,-3371.18320883,0.00027705,2]
[422629239,1779174643000,-254.52837,0.00027397,2]
[422629309,1779174643000,-150.0,0.00028493,2]
[422629311,1779174643000,-500.0,0.00028493,2]
[422629340,1779174643000,-854.0,0.00028493,2]
[422629341,1779174643000,-500.0,0.00028493,2]
[422629351,1779174643000,-854.0,0.00028493,2]
[422629345,1779174643000,-854.0,0.00028493,2]
[422629350,1779174643000,-500.0,0.00028493,2]
[422629343,1779174643000,-150.0,0.00028493,2]
[422629347,1779174643000,-500.0,0.00028493,2]
[422629348,1779174643000,-854.0,0.00028493,2]
[422629344,1779174643000,-500.0,0.00028493,2]
[422629349,1779174643000,-150.0,0.00028493,2]
[422629346,1779174643000,-150.0,0.00028493,2]
[422629342,1779174643000,-854.0,0.00028493,2]
[422629339,1779174643000,-500.0,0.00028493,2]
[422629354,1779174643000,-500.0,0.00028493,2]
[422629352,1779174643000,-500.0,0.00028493,2]
[422629355,1779174643000,-854.0,0.00028493,2]
[422629356,1779174643000,-500.0,0.00028493,2]
[422629357,1779174643000,-854.0,0.00028493,2]
[422629358,1779174643000,-500.0,0.00028493,2]
[422629362,1779174643000,-854.0,0.00028493,2]
[422629360,1779174643000,-150.0,0.00028493,2]
[422629361,1779174643000,-500.0,0.00028493,2]
[422629308,1779174643000,-500.0,0.00028493,2]
[422629363,1779174643000,-854.0,0.00028493,2]
[422629364,1779174643000,-854.0,0.00028493,2]
[422629365,1779174643000,-500.0,0.00028493,2]
[422629353,1779174643000,-500.0,0.00028493,2]
[422629332,1779174643000,-351.0706614,0.00028493,2]
[422629359,1779174643000,-854.0,0.00028493,2]
[422629338,1779174643000,-854.0,0.00028493,2]
[422629334,1779174643000,-500.0,0.00028493,2]
[422629313,1779174643000,-200.0,0.00028493,2]
[422629315,1779174643000,-150.0,0.00028493,2]
[422629312,1779174643000,-500.0,0.00028493,2]
[422629314,1779174643000,-500.0,0.00028493,2]
[422629307,1779174643000,-500.0,0.00028493,2]
[422629321,1779174643000,-500.0,0.00028493,2]
[422629318,1779174643000,-539.56685334,0.00028493,2]
[422629316,1779174643000,-500.0,0.00028493,2]
[422629320,1779174643000,-500.0,0.00028493,2]
[422629317,1779174643000,-500.0,0.00028493,2]
[422629319,1779174643000,-500.0,0.00028493,2]
[422629322,1779174643000,-500.0,0.00028493,2]
[422629304,1779174643000,-296.94706668,0.00028493,2]
[422629323,1779174643000,-500.0,0.00028493,2]
[422629325,1779174643000,-500.0,0.00028493,2]
[422629331,1779174643000,-854.0,0.00028493,2]
[422629337,1779174643000,-500.0,0.00028493,2]
[422629333,1779174643000,-500.0,0.00028493,2]
[422629329,1779174643000,-500.0,0.00028493,2]
[422629335,1779174643000,-854.0,0.00028493,2]
[422629336,1779174643000,-181.11697857,0.00028493,2]
[422629326,1779174643000,-150.0,0.00028493,2]
[422629327,1779174643000,-854.0,0.00028493,2]
[422629330,1779174643000,-500.0,0.00028493,2]
[422629324,1779174643000,-500.0,0.00028493,2]
[422629328,1779174643000,-500.0,0.00028493,2]
[422629403,1779174644000,-389.72,0.00028661,7]
[422629408,1779174644000,-274.42,0.00028693,30]
[422629407,1779174644000,-390.53,0.00028693,30]
[422629397,1779174644000,-274.42,0.00028661,7]
[422629405,1779174644000,-1245.45,0.00028693,30]
[422629410,1779174644000,-1244.99,0.00028693,30]
[422629399,1779174644000,-356.5,0.00028661,7]
[422629401,1779174644000,-1244.99,0.00028661,7]
[422629409,1779174644000,-356.5,0.00028693,30]
[422629396,1779174644000,-390.53,0.00028661,7]
[422629406,1779174644000,-356.36,0.00028693,30]
[422629416,1779174644000,-274.42,0.00028725,2]
[422629411,1779174644000,-389.72,0.00028693,30]
[422629412,1779174644000,-274.46,0.00028725,2]
[422629413,1779174644000,-1245.45,0.00028725,2]
[422629414,1779174644000,-356.36,0.00028725,2]
[422629415,1779174644000,-390.53,0.00028725,2]
[422629417,1779174644000,-356.5,0.00028725,2]
[422629418,1779174644000,-1244.99,0.00028725,2]
[422629421,1779174644000,-1245.45,0.00028756,7]
[422629419,1779174644000,-389.72,0.00028725,2]
[422629391,1779174644000,-150.0,0.0002866,20]
[422629404,1779174644000,-274.46,0.00028693,30]
[422629386,1779174644000,-274.42,0.0002863,2]
[422629378,1779174644000,-854.0,0.00028493,2]
[422629390,1779174644000,-389.72,0.0002863,2]
[422629420,1779174644000,-274.46,0.00028756,7]
[422629372,1779174644000,-854.0,0.00028493,2]
[422629367,1779174644000,-854.0,0.00028493,2]
[422629366,1779174644000,-150.0,0.00028493,2]
[422629370,1779174644000,-854.0,0.00028493,2]
[422629368,1779174644000,-200.0,0.00028493,2]
[422629369,1779174644000,-150.0,0.00028493,2]
[422629373,1779174644000,-340.0,0.00028493,2]
[422629371,1779174644000,-500.0,0.00028493,2]
[422629375,1779174644000,-854.0,0.00028493,2]
[422629387,1779174644000,-356.5,0.0002863,2]
[422629374,1779174644000,-854.0,0.00028493,2]
[422629376,1779174644000,-854.0,0.00028493,2]
[422629381,1779174644000,-2000.0,0.000285,2]
[422629377,1779174644000,-854.0,0.00028493,2]
[422629383,1779174644000,-274.46,0.0002863,2]
[422629393,1779174644000,-1245.45,0.00028661,7]
[422629394,1779174644000,-356.36,0.00028661,7]
[422629384,1779174644000,-356.36,0.0002863,2]
[422629389,1779174644000,-1244.99,0.0002863,2]
[422629385,1779174644000,-390.53,0.0002863,2]
[422629392,1779174644000,-274.46,0.00028661,7]
[422629379,1779174644000,-858.0,0.00028493,2]
[422629423,1779174644000,-390.53,0.00028756,7]
[422629469,1779174644000,-389.72,0.00028883,30]
[422629432,1779174644000,-390.53,0.00028788,30]
[422629454,1779174644000,-150.0090512,0.00028852,7]
[422629456,1779174644000,-390.53,0.00028852,7]
[422629459,1779174644000,-356.5,0.00028852,7]
[422629453,1779174644000,-150.0090512,0.00028852,7]
[422629458,1779174644000,-1244.99,0.00028852,7]
[422629461,1779174644000,-727.74876441,0.00028869,7]
[422629462,1779174644000,-274.46,0.00028883,30]
[422629464,1779174644000,-1245.45,0.00028883,30]
[422629463,1779174644000,-356.36,0.00028883,30]
[422629465,1779174644000,-390.53,0.00028883,30]
[422629457,1779174644000,-274.42,0.00028852,7]
[422629466,1779174644000,-274.42,0.00028883,30]
[422629470,1779174644000,-274.46,0.00028915,2]
[422629471,1779174644000,-356.36,0.00028915,2]
[422629467,1779174644000,-1244.99,0.00028883,30]
[422629478,1779174644000,-274.46,0.00028947,7]
[422629472,1779174644000,-1245.45,0.00028915,2]
[422629473,1779174644000,-390.53,0.00028915,2]
[422629474,1779174644000,-274.42,0.00028915,2]
[422629476,1779174644000,-356.5,0.00028915,2]
[422629475,1779174644000,-1244.99,0.00028915,2]
[422629422,1779174644000,-356.36,0.00028756,7]
[422629468,1779174644000,-356.5,0.00028883,30]
[422629460,1779174644000,-389.72,0.00028852,7]
[422629477,1779174644000,-389.72,0.00028915,2]
[422629452,1779174644000,-150.0090512,0.00028852,7]
[422629455,1779174644000,-150.0090512,0.00028852,7]
[422629424,1779174644000,-274.42,0.00028756,7]
[422629425,1779174644000,-1244.99,0.00028756,7]
[422629429,1779174644000,-274.46,0.00028788,30]
[422629427,1779174644000,-389.72,0.00028756,7]
[422629428,1779174644000,-1000.0,0.00028766,14]
[422629430,1779174644000,-1245.45,0.00028788,30]
[422629431,1779174644000,-356.36,0.00028788,30]
[422629434,1779174644000,-1244.99,0.00028788,30]
[422629433,1779174644000,-274.42,0.00028788,30]
[422629445,1779174644000,-274.42,0.0002882,2]
[422629426,1779174644000,-356.5,0.00028756,7]
[422629436,1779174644000,-389.72,0.00028788,30]
[422629447,1779174644000,-356.5,0.0002882,2]
[422629450,1779174644000,-356.36,0.00028852,7]
[422629449,1779174644000,-274.46,0.00028852,7]
[422629451,1779174644000,-1245.45,0.00028852,7]
[422629443,1779174644000,-390.53,0.0002882,2]
[422629441,1779174644000,-356.36,0.0002882,2]
[422629437,1779174644000,-274.46,0.0002882,2]
[422629435,1779174644000,-356.5,0.00028788,30]
[422629448,1779174644000,-389.72,0.0002882,2]
[422629446,1779174644000,-1244.99,0.0002882,2]
[422629439,1779174644000,-1245.45,0.0002882,2]
[422629499,1779174645000,-390.53,0.0002901,2]
[422629501,1779174645000,-1244.99,0.0002901,2]
[422629502,1779174645000,-356.5,0.0002901,2]
[422629504,1779174645000,-274.46,0.00029042,7]
[422629503,1779174645000,-389.72,0.0002901,2]
[422629506,1779174645000,-1245.45,0.00029042,7]
[422629505,1779174645000,-356.36,0.00029042,7]
[422629509,1779174645000,-1244.99,0.00029042,7]
[422629514,1779174645000,-274.46,0.00029074,30]
[422629508,1779174645000,-274.42,0.00029042,7]
[422629510,1779174645000,-356.5,0.00029042,7]
[422629513,1779174645000,-192.21,0.00029074,30]
[422629511,1779174645000,-389.72,0.00029042,7]
[422629512,1779174645000,-661.81864313,0.00029072,2]
[422629500,1779174645000,-274.42,0.0002901,2]
[422629515,1779174645000,-1245.45,0.00029074,30]
[422629507,1779174645000,-390.53,0.00029042,7]
[422629498,1779174645000,-1245.45,0.0002901,2]
[422629486,1779174645000,-274.46,0.00028979,30]
[422629496,1779174645000,-274.46,0.0002901,2]
[422629517,1779174645000,-390.53,0.00029074,30]
[422629480,1779174645000,-1245.45,0.00028947,7]
[422629481,1779174645000,-390.53,0.00028947,7]
[422629482,1779174645000,-274.42,0.00028947,7]
[422629484,1779174645000,-356.5,0.00028947,7]
[422629479,1779174645000,-356.36,0.00028947,7]
[422629483,1779174645000,-1244.99,0.00028947,7]
[422629485,1779174645000,-389.72,0.00028947,7]
[422629487,1779174645000,-356.36,0.00028979,30]
[422629489,1779174645000,-390.53,0.00028979,30]
[422629488,1779174645000,-1245.45,0.00028979,30]
[422629492,1779174645000,-356.5,0.00028979,30]
[422629490,1779174645000,-274.42,0.00028979,30]
[422629491,1779174645000,-1244.99,0.00028979,30]
[422629494,1779174645000,-163.6,0.00029,7]
[422629493,1779174645000,-389.72,0.00028979,30]
[422629495,1779174645000,-300.04957066,0.00029,2]
[422629497,1779174645000,-356.36,0.0002901,2]
[422629516,1779174645000,-356.36,0.00029074,30]
[422629522,1779174645000,-274.46,0.00029105,2]
[422629518,1779174645000,-274.42,0.00029074,30]
[422629545,1779174645000,-500.0,0.0002913,7]
[422629550,1779174645000,-500.0,0.0002913,7]
[422629547,1779174645000,-500.0,0.0002913,7]
[422629546,1779174645000,-500.0,0.0002913,7]
[422629548,1779174645000,-500.0,0.0002913,7]
[422629549,1779174645000,-500.0,0.0002913,7]
[422629553,1779174645000,-500.0,0.0002913,7]
[422629552,1779174645000,-500.0,0.0002913,7]
[422629555,1779174645000,-500.0,0.0002913,7]
[422629554,1779174645000,-500.0,0.0002913,7]
[422629556,1779174645000,-500.0,0.0002913,7]
[422629558,1779174645000,-500.0,0.0002913,7]
[422629557,1779174645000,-500.0,0.0002913,7]
[422629559,1779174645000,-500.0,0.0002913,7]
[422629560,1779174645000,-500.0,0.0002913,7]
[422629520,1779174645000,-356.5,0.00029074,30]
[422629561,1779174645000,-500.0,0.0002913,7]
[422629543,1779174645000,-500.0,0.0002913,7]
[422629542,1779174645000,-500.0,0.0002913,7]
[422629551,1779174645000,-500.0,0.0002913,7]
[422629538,1779174645000,-500.0,0.0002913,7]
[422629519,1779174645000,-1244.99,0.00029074,30]
[422629541,1779174645000,-500.0,0.0002913,7]
[422629523,1779174645000,-356.36,0.00029105,2]
[422629524,1779174645000,-1245.45,0.00029105,2]
[422629526,1779174645000,-274.42,0.00029105,2]
[422629527,1779174645000,-1244.99,0.00029105,2]
[422629531,1779174645000,-500.0,0.0002913,7]
[422629530,1779174645000,-500.0,0.0002913,7]
[422629525,1779174645000,-390.53,0.00029105,2]
[422629521,1779174645000,-389.72,0.00029074,30]
[422629528,1779174645000,-356.5,0.00029105,2]
[422629532,1779174645000,-619.59,0.0002913,7]
[422629533,1779174645000,-500.0,0.0002913,7]
[422629536,1779174645000,-500.0,0.0002913,7]
[422629534,1779174645000,-500.0,0.0002913,7]
[422629544,1779174645000,-500.0,0.0002913,7]
[422629540,1779174645000,-500.0,0.0002913,7]
[422629529,1779174645000,-389.72,0.00029105,2]
[422629584,1779174646000,-1245.45,0.00029169,30]
[422629582,1779174646000,-274.46,0.00029169,30]
[422629585,1779174646000,-390.53,0.00029169,30]
[422629590,1779174646000,-274.46,0.00029201,2]
[422629592,1779174646000,-1245.45,0.00029201,2]
[422629588,1779174646000,-356.5,0.00029169,30]
[422629591,1779174646000,-356.36,0.00029201,2]
[422629593,1779174646000,-390.53,0.00029201,2]
[422629589,1779174646000,-389.72,0.00029169,30]
[422629594,1779174646000,-274.42,0.00029201,2]
[422629595,1779174646000,-1244.99,0.00029201,2]
[422629596,1779174646000,-356.5,0.00029201,2]
[422629597,1779174646000,-389.72,0.00029201,2]
[422629598,1779174646000,-1245.05,0.00029232,7]
[422629599,1779174646000,-274.61,0.00029232,7]
[422629583,1779174646000,-356.36,0.00029169,30]
[422629586,1779174646000,-274.42,0.00029169,30]
[422629580,1779174646000,-155.47197482,0.00029161,7]
[422629563,1779174646000,-500.0,0.0002913,7]
[422629579,1779174646000,-191.1620045,0.00029161,2]
[422629602,1779174646000,-390.66,0.00029232,7]
[422629562,1779174646000,-500.0,0.0002913,7]
[422629565,1779174646000,-500.0,0.0002913,7]
[422629564,1779174646000,-500.0,0.0002913,7]
[422629567,1779174646000,-494.75,0.0002913,7]
[422629566,1779174646000,-500.0,0.0002913,7]
[422629568,1779174646000,-500.0,0.0002913,7]
[422629570,1779174646000,-274.46,0.00029137,7]
[422629569,1779174646000,-500.0,0.00029136,2]
[422629572,1779174646000,-1245.45,0.00029137,7]
[422629573,1779174646000,-390.53,0.00029137,7]
[422629571,1779174646000,-356.36,0.00029137,7]
[422629575,1779174646000,-1244.99,0.00029137,7]
[422629577,1779174646000,-389.72,0.00029137,7]
[422629574,1779174646000,-274.42,0.00029137,7]
[422629576,1779174646000,-356.5,0.00029137,7]
[422629578,1779174646000,-150.70512206,0.00029161,7]
[422629581,1779174646000,-267.54370149,0.00029161,7]
[422629600,1779174646000,-356.46,0.00029232,7]
[422629587,1779174646000,-1244.99,0.00029169,30]
[422629603,1779174646000,-274.51,0.00029232,7]
[422629625,1779174646000,-1000.0,0.00029827,13]
[422629627,1779174646000,-3633.0,0.00029835,2]
[422629637,1779174646000,-275.56,0.00030035,14]
[422629626,1779174646000,-1224.0,0.00029835,2]
[422629628,1779174646000,-500.0,0.00029863,2]
[422629601,1779174646000,-1245.54,0.00029232,7]
[422629631,1779174646000,-1000.0,0.00029999,5]
[422629630,1779174646000,-150.0,0.00029986,2]
[422629635,1779174646000,-165.0,0.0003002,30]
[422629634,1779174646000,-200.0,0.0003,2]
[422629629,1779174646000,-304.77,0.000299,14]
[422629633,1779174646000,-253.0,0.0003,14]
[422629636,1779174646000,-10000.0,0.0003003,2]
[422629639,1779174646000,-5356.629224,0.00030078,2]
[422629638,1779174646000,-428.75,0.00030035,14]
[422629640,1779174646000,-946649.14086039,0.00030078,2]
[422629641,1779174646000,-888.27250654,0.00027397,10]
[422629623,1779174646000,-151.0,0.0002982,2]
[422629624,1779174646000,-394.70053085,0.0002982,2]
[422629632,1779174646000,-302.0,0.0003,10]
[422629620,1779174646000,-5507.83,0.00029763,2]
[422629604,1779174646000,-356.56,0.00029232,7]
[422629622,1779174646000,-8715.57779158,0.000298,2]
[422629606,1779174646000,-174.75,0.000293,7]
[422629609,1779174646000,-550.0,0.00029394,30]
[422629607,1779174646000,-2000.0,0.000293,2]
[422629608,1779174646000,-155.9461638,0.00029394,30]
[422629610,1779174646000,-550.0,0.00029394,30]
[422629611,1779174646000,-550.0,0.00029394,30]
[422629605,1779174646000,-389.79,0.00029232,7]
[422629612,1779174646000,-550.0,0.00029394,30]
[422629614,1779174646000,-372.0,0.00029394,30]
[422629615,1779174646000,-3544.0,0.00029486,2]
[422629616,1779174646000,-1500.0,0.00029534,15]
[422629617,1779174646000,-1500.0,0.00029534,15]
[422629618,1779174646000,-150.0,0.00029534,2]
[422629619,1779174646000,-1000.0,0.00029684,4]
[422629621,1779174646000,-259.0,0.00029776,10]
[422629613,1779174646000,-550.0,0.00029394,30]
[422629643,1779174647000,-2819.1590974,0.00014829,2]
[422629699,1779174664000,500.0,0.0002866,120]
[422629700,1779174664000,500.0,0.00030083,120]
[422629702,1779174664000,377.02817999,0.00030129,120]
[422629701,1779174664000,500.0,0.00030129,120]
[422629703,1779174677000,-500.0,0.00013698,2]
[422629704,1779174819000,187.13539656,0.00028957,120]
[422629705,1779174982000,673.45,0.00028439,120]
[422629706,1779175068000,265.10847846,0.0002868,120]
[422629707,1779175100000,171.54078018,0.0002868,120]
[422629709,1779175256000,846.0,0.0003,120]
[422629710,1779175339000,500.0,0.00028903,120]
[422629711,1779175389000,160.0,0.00013561,2]
[422629712,1779175530000,500.0,0.00028903,120]
[422629713,1779175531000,500.0,0.00030077,120]
[422629715,1779175531000,500.0,0.00030083,120]
[422629714,1779175531000,500.0,0.00030077,120]
[422629716,1779175546000,-150.0,0.00013697,2]
[422629718,1779175552000,500.0,0.00030077,120]
[422629717,1779175552000,500.0,0.00028903,120]
[422629719,1779175553000,500.0,0.00030077,120]
[422629721,1779175603000,518.89031973,0.00030077,120]
[422629720,1779175603000,500.0,0.00028903,120]
[422629725,1779175686000,500.0,0.000301,120]
[422629724,1779175686000,500.0,0.000301,120]
[422629726,1779175687000,444.00924544,0.000301,120]
[422629727,1779175700000,521.48300674,0.00028903,120]
[422629728,1779175727000,500.0,0.00028903,120]
[422629729,1779175727000,500.0,0.00030077,120]
[422629730,1779175727000,574.66661323,0.00030077,120]
[422629731,1779175742000,1000.0,0.00030134,120]
[422629732,1779175752000,209.38134059,0.000301,120]
[422629734,1779175793000,-1040.0,0.00013697,2]
[422629755,1779175832000,-143.37760877,0.00014383,2]
[422629762,1779175832000,-4338.11806701,0.00014697,2]
[422629771,1779175832000,-500.0,0.00014764,2]
[422629774,1779175832000,-500.0,0.00014764,2]
[422629781,1779175832000,-500.0,0.00014764,2]
[422629764,1779175832000,-447.9956099,0.00014697,2]
[422629791,1779175832000,-163995.39435335,0.00014765,2]
[422629779,1779175832000,-500.0,0.00014764,2]
[422629777,1779175832000,-500.0,0.00014764,2]
[422629767,1779175832000,-2346.73,0.00014744,2]
[422629769,1779175832000,-628.71826054,0.00014764,2]
[422629784,1779175832000,-500.0,0.00014764,2]
[422629800,1779175832000,-2054.61005171,0.00014917,2]
[422629757,1779175832000,-500.434,0.00014383,2]
[422629798,1779175832000,-336.18980132,0.000149,2]
[422629760,1779175832000,-2500.0,0.00014693,2]
[422629744,1779175832000,-160.51609712,0.00013853,2]
[422629753,1779175832000,-189.29239123,0.00014383,2]
[422629737,1779175832000,-225.0491538,0.00013698,2]
[422629736,1779175832000,-374.2529762,0.00013698,2]
[422629739,1779175832000,-300.0,0.00013852,2]
[422629740,1779175832000,-10.90358322,0.00013852,2]
[422629738,1779175832000,-363.00352986,0.00013698,2]
[422629741,1779175832000,-332.18031966,0.00013852,2]
[422629742,1779175832000,-856.91609712,0.00013852,2]
[422629743,1779175832000,-2339.48390288,0.00013853,2]
[422629745,1779175832000,-2135.49207235,0.00013853,2]
[422629746,1779175832000,-364.50792765,0.00013853,2]
[422629747,1779175832000,-2500.0,0.00013853,2]
[422629750,1779175832000,-43.44606544,0.00014217,2]
[422629749,1779175832000,-250.0,0.00014,2]
[422629748,1779175832000,-705.77884735,0.00013853,2]
[422629752,1779175832000,-332.67,0.00014383,2]
[422629751,1779175832000,-987.46393456,0.00014217,2]
[422629803,1779175832000,-445.38994829,0.00014917,2]
[422629823,1779175832000,-392.42,0.00015284,2]
[422629789,1779175832000,-344262.33734665,0.00014765,2]
[422629835,1779175832000,-2346.73,0.00016218,2]
[422629836,1779175832000,-166.66,0.00016263,2]
[422629837,1779175832000,-447.99560984,0.00016401,2]
[422629838,1779175832000,-490.4,0.00016438,2]
[422629844,1779175832000,-500.0,0.00017349,2]
[422629845,1779175832000,-277.53845302,0.00017349,2]
[422629833,1779175832000,-300.0,0.00016,2]
[422629840,1779175832000,-166.66,0.00016751,2]
[422629841,1779175832000,-166.66,0.0001724,2]
[422629843,1779175832000,-500.0,0.00017349,2]
[422629847,1779175832000,-151.0,0.00017349,2]
[422629846,1779175832000,-2005.9555727,0.00017349,2]
[422629848,1779175832000,-151.0,0.00017349,2]
[422629793,1779175832000,-166.66,0.00014797,2]
[422629842,1779175832000,-500.0,0.00017349,2]
[422629834,1779175832000,-6623.73,0.00016116,2]
[422629839,1779175832000,-587.0,0.00016631,2]
[422629830,1779175832000,-184.07,0.00015693,2]
[422629796,1779175832000,-8240.4009,0.000149,2]
[422629832,1779175832000,-2346.73,0.00015849,2]
[422629786,1779175832000,-595.59143978,0.00014764,2]
[422629805,1779175832000,-347.07799318,0.00015067,2]
[422629818,1779175832000,-420.0,0.00015178,2]
[422629810,1779175832000,-150.0,0.00015068,2]
[422629817,1779175832000,-200.0,0.00015127,2]
[422629807,1779175832000,-250.0,0.00015067,2]
[422629812,1779175832000,-250.0,0.00015068,2]
[422629814,1779175832000,-2346.73,0.00015112,2]
[422629831,1779175832000,-166.66,0.00015774,2]
[422629827,1779175832000,-9999.99,0.0001531,2]
[422629821,1779175832000,-854.0,0.00015237,2]